bitfinex-derivatives/quotes_BTCF0:USTF0_20251028
["timestamp","ask_amount","ask_price","bid_price","bid_amount"]
[1761631229842,0.20195161,113720.0,113710.0,0.05909]
[1761631231226,0.04875,113720.0,113710.0,0.05909]
[1761631231436,0.04875,113720.0,113710.0,0.1470386]
[1761631233338,0.005,113720.0,113710.0,0.1470386]
[1761631233527,0.04281,113740.0,113730.0,0.0586]
[1761631233727,0.06599693,113740.0,113730.0,0.0586]
[1761631233926,0.04281,113740.0,113730.0,0.0586]
[1761631234135,0.19601161,113740.0,113730.0,0.0586]
[1761631235141,0.04981,113740.0,113730.0,0.21380161]
[1761631235442,0.05081,113740.0,113730.0,0.0606]
[1761631235943,0.20401161,113740.0,113730.0,0.0606]
[1761631236143,0.22718818,113740.0,113730.0,0.0606]
[1761631236344,0.22718818,113740.0,113730.0,0.002]
[1761631236746,0.23718818,113740.0,113730.0,0.002]
[1761631237455,0.86038979,113740.0,113730.0,0.002]
[1761631237654,0.70718818,113740.0,113730.0,0.002]
[1761631237851,0.53718818,113740.0,113730.0,0.002]
[1761631238055,0.71718818,113740.0,113730.0,0.002]
[1761631238854,0.87038979,113740.0,113730.0,0.002]
[1761631239052,0.71718818,113740.0,113730.0,0.002]
[1761631239359,1.00390854,113740.0,113730.0,0.002]
[1761631239553,0.69750532,113740.0,113730.0,0.002]
[1761631239742,0.09750532,113740.0,113730.0,0.02515]
[1761631239948,0.87390854,113740.0,113730.0,0.002]
[1761631240151,0.88188733,113740.0,113730.0,0.002]
[1761631240354,0.92906728,113740.0,113730.0,0.002]
[1761631240960,1.52906728,113740.0,113730.0,0.002]
[1761631241153,1.49756932,113740.0,113730.0,0.002]
[1761631241751,0.89756932,113740.0,113730.0,0.002]
[1761631241947,0.00913,113730.0,113700.0,0.05896]
[1761631242255,0.19601161,113710.0,113700.0,0.05896]
[1761631242957,0.04281,113710.0,113700.0,0.05896]
[1761631243148,0.06604985,113710.0,113700.0,0.05896]
[1761631243961,0.04281,113710.0,113700.0,0.05896]
[1761631244363,0.04281,113710.0,113700.0,0.05996]
[1761631244562,0.06605248,113710.0,113700.0,0.05996]
[1761631245062,0.06705248,113710.0,113700.0,0.06296]
[1761631246670,0.06705248,113710.0,113700.0,0.21616161]
[1761631247065,0.06705248,113710.0,113700.0,0.06296]
[1761631250468,0.22025409,113710.0,113700.0,0.06296]
[1761631251863,0.06705248,113710.0,113700.0,0.06296]
[1761631252065,0.06705248,113710.0,113700.0,0.1509164]
[1761631252366,0.04381,113710.0,113700.0,0.06296]
[1761631252570,0.06707723,113710.0,113700.0,0.06296]
[1761631253264,0.04381,113710.0,113700.0,0.06296]
[1761631256066,0.19701161,113710.0,113700.0,0.06296]
[1761631260471,0.04381,113710.0,113700.0,0.1509163]
[1761631260665,0.001,113710.0,113700.0,0.30411791]
[1761631260866,0.04392,113740.0,113730.0,0.05803]
[1761631261185,0.02176,113740.0,113730.0,0.05803]
[1761631261381,0.04392,113740.0,113730.0,0.05803]
[1761631261969,0.19712161,113740.0,113730.0,0.05803]
[1761631262174,0.19812161,113740.0,113730.0,0.05803]
[1761631262671,0.04492,113740.0,113730.0,0.05803]
[1761631263270,0.05192,113740.0,113730.0,0.05903]
[1761631263472,0.20512161,113740.0,113730.0,0.05903]
[1761631263865,0.04492,113740.0,113730.0,0.05803]
[1761631264068,0.04692,113740.0,113730.0,0.05903]
[1761631266773,0.04692,113740.0,113730.0,0.1469632]
[1761631267075,0.06750734,113770.0,113740.0,0.0879238]
[1761631267281,0.06750734,113770.0,113760.0,0.05803]
[1761631267282,0.24394909,113770.0,113760.0,0.05803]
[1761631267581,0.22036175,113770.0,113760.0,0.05803]
[1761631268476,0.22236175,113770.0,113760.0,0.05803]
[1761631269777,0.23236175,113770.0,113760.0,0.05903]
[1761631270878,0.22336175,113770.0,113760.0,0.05903]
[1761631271275,0.22012161,113770.0,113760.0,0.05903]
[1761631271881,0.22925161,113770.0,113760.0,0.04618]
[1761631272082,0.32925161,113770.0,113760.0,0.001]
[1761631272280,0.32925161,113770.0,113760.0,0.02419]
[1761631272887,0.32925161,113770.0,113760.0,0.04647]
[1761631275385,0.32925161,113770.0,113760.0,0.02419]
[1761631276881,0.32925161,113770.0,113760.0,0.001]
[1761631277086,0.93245322,113770.0,113760.0,0.001]
[1761631277480,0.80236463,113770.0,113760.0,0.001]
[1761631277681,0.95556624,113770.0,113760.0,0.001]
[1761631277985,1.55556624,113770.0,113760.0,0.001]
[1761631281586,1.24916302,113770.0,113760.0,0.001]
[1761631281786,1.55556624,113770.0,113760.0,0.001]
[1761631285588,1.55556624,113770.0,113760.0,0.04647]
[1761631286598,1.55556624,113770.0,113760.0,0.05986]
[1761631286599,0.79323463,113770.0,113760.0,0.05986]
[1761631287097,0.57323463,113770.0,113760.0,0.05986]
[1761631287688,0.75323463,113770.0,113760.0,0.05986]
[1761631289295,0.77682197,113770.0,113760.0,0.05986]
[1761631289491,0.77682197,113770.0,113760.0,0.001]
[1761631289699,0.78595197,113770.0,113760.0,0.001]
[1761631290300,0.93915358,113770.0,113760.0,0.001]
[1761631291708,0.93903166,113770.0,113760.0,0.001]
[1761631291907,1.09217231,113770.0,113760.0,0.001]
[1761631292100,0.00913,113750.0,113740.0,0.0214]
[1761631292302,0.9601513,113750.0,113730.0,0.13839]
[1761631292499,0.3510213,113740.0,113730.0,0.13839]
[1761631292706,0.3510213,113740.0,113730.0,0.05539]
[1761631293307,0.35946934,113740.0,113730.0,0.05539]
[1761631293508,0.40859934,113740.0,113730.0,0.0254]
[1761631293814,0.43179857,113740.0,113730.0,0.0254]
[1761631295007,0.43179857,113740.0,113730.0,0.04254]
[1761631295207,0.37522053,113740.0,113730.0,0.06151]
[1761631298012,0.3838519,113740.0,113730.0,0.06151]
[1761631299106,0.37522053,113740.0,113730.0,0.06151]
[1761631300209,0.06893923,113740.0,113730.0,0.06151]
[1761631300511,0.37522053,113740.0,113730.0,0.06151]
[1761631301312,0.3520213,113740.0,113730.0,0.06151]
[1761631306307,0.04574,113740.0,113730.0,0.06151]
[1761631306515,0.024,113740.0,113730.0,0.21465065]
[1761631306715,0.17714065,113740.0,113730.0,0.21465065]
[1761631307414,0.19888065,113740.0,113730.0,0.21465065]
[1761631307613,0.19888065,113740.0,113730.0,0.06151]
[1761631307809,0.19888065,113740.0,113730.0,0.21465065]
[1761631309223,0.19888065,113740.0,113730.0,0.06151]
[1761631309923,0.3520213,113740.0,113730.0,0.06151]
[1761631313125,0.04574,113740.0,113730.0,0.06151]
[1761631313324,0.3520213,113740.0,113730.0,0.06151]
[1761631314222,0.19888065,113740.0,113730.0,0.21465065]
[1761631314820,0.024,113740.0,113730.0,0.06151]
[1761631315020,0.19888065,113740.0,113730.0,0.21465065]
[1761631316224,0.15414065,113740.0,113730.0,0.21465065]
[1761631317333,0.001,113740.0,113730.0,0.30258385]
[1761631319936,0.20009065,113740.0,113730.0,0.06151]
[1761631320130,0.20009065,113740.0,113730.0,0.21465065]
[1761631320334,0.20009065,113740.0,113730.0,0.06151]
[1761631321431,0.3532313,113740.0,113730.0,0.06151]
[1761631321940,0.04695,113740.0,113730.0,0.06151]
[1761631322133,0.3532313,113740.0,113730.0,0.06151]
[1761631324246,0.20009065,113740.0,113730.0,0.21465065]
[1761631325740,0.20009065,113740.0,113730.0,0.06151]
[1761631326346,0.3532313,113740.0,113730.0,0.06151]
[1761631327848,0.04695,113740.0,113730.0,0.06151]
[1761631328046,0.3532313,113740.0,113730.0,0.06151]
[1761631330048,0.04695,113740.0,113730.0,0.06151]
[1761631330243,0.3532313,113740.0,113730.0,0.06151]
[1761631335249,0.20009065,113740.0,113730.0,0.21465065]
[1761631335549,0.3532313,113740.0,113730.0,0.06151]
[1761631335747,0.20009065,113740.0,113730.0,0.06151]
[1761631335947,0.20009065,113740.0,113730.0,0.21465065]
[1761631336644,0.3532313,113740.0,113730.0,0.21465065]
[1761631336855,0.3532313,113740.0,113730.0,0.06151]
[1761631337847,0.04695,113740.0,113730.0,0.06151]
[1761631338048,0.3532313,113740.0,113730.0,0.06151]
[1761631338642,0.3623613,113740.0,113730.0,0.04854]
[1761631340555,0.3623613,113740.0,113730.0,0.006]
[1761631340861,0.9986894,113740.0,113730.0,0.006]
[1761631341047,0.84554875,113740.0,113730.0,0.006]
[1761631341248,0.9986894,113740.0,113730.0,0.006]
[1761631341960,1.0223211,113740.0,113730.0,0.006]
[1761631342755,0.00913,113730.0,113710.0,0.05767]
[1761631342964,0.3508013,113720.0,113710.0,0.05767]
[1761631344758,0.3508013,113720.0,113710.0,0.06467]
[1761631345064,0.04452,113720.0,113710.0,0.06467]
[1761631345266,0.3508013,113720.0,113710.0,0.05867]
[1761631345459,0.3518013,113720.0,113710.0,0.06667]
[1761631345661,0.3518013,113720.0,113710.0,0.06567]
[1761631345863,0.3508013,113720.0,113710.0,0.05767]
[1761631346055,0.04552,113720.0,113710.0,0.06067]
[1761631346362,0.3518013,113720.0,113710.0,0.06067]
[1761631349963,0.3609313,113720.0,113710.0,0.0477]
[1761631350369,0.3609313,113720.0,113710.0,0.02578]
[1761631351959,0.20789536,113720.0,113710.0,0.02578]
[1761631353070,0.20789536,113720.0,113710.0,0.003]
[1761631353664,0.20789536,113720.0,113710.0,0.02472]
[1761631354864,0.20789536,113720.0,113710.0,0.003]
[1761631355065,0.56789536,113720.0,113710.0,0.003]
[1761631355965,0.77789536,113720.0,113710.0,0.003]
[1761631360874,0.80114354,113720.0,113710.0,0.003]
[1761631363375,0.77789536,113720.0,113710.0,0.003]
[1761631363671,0.56113906,113720.0,113710.0,0.003]
[1761631364776,0.75113906,113720.0,113710.0,0.003]
[1761631365075,0.35113906,113720.0,113710.0,0.04679]
[1761631366976,0.52113906,113720.0,113710.0,0.04679]
[1761631367666,0.34200906,113720.0,113710.0,0.06055]
[1761631367975,0.04552,113720.0,113710.0,0.06055]
[1761631368476,0.04552,113720.0,113710.0,0.21379536]
[1761631368669,0.04552,113720.0,113710.0,0.06055]
[1761631369973,0.04552,113720.0,113710.0,0.003]
[1761631370179,0.21789536,113720.0,113710.0,0.003]
[1761631370383,0.20789536,113720.0,113710.0,0.02472]
[1761631370878,0.20789536,113720.0,113710.0,0.04679]
[1761631371883,0.23117733,113720.0,113710.0,0.04679]
[1761631372082,0.23117738,113720.0,113710.0,0.04679]
[1761631373280,0.07793202,113720.0,113710.0,0.04679]
[1761631373480,0.22204738,113720.0,113710.0,0.06055]
[1761631375484,0.19876536,113720.0,113710.0,0.06055]
[1761631376585,0.04552,113720.0,113710.0,0.21379536]
[1761631376786,0.04552,113720.0,113710.0,0.06055]
[1761631376978,0.001,113720.0,113710.0,0.21379536]
[1761631377479,0.001,113720.0,113710.0,0.30174396]
[1761631377875,0.15324536,113740.0,113710.0,0.30174396]
[1761631377876,0.19851536,113740.0,113730.0,0.01376]
[1761631378180,0.07527,113740.0,113730.0,0.05755]
[1761631378490,0.19754536,113750.0,113740.0,0.01368]
[1761631378692,0.21754536,113750.0,113740.0,0.05734]
[1761631379899,0.21854536,113750.0,113740.0,0.05734]
[1761631380780,0.22654536,113750.0,113740.0,0.04566]
[1761631380982,0.22654536,113750.0,113740.0,0.05934]
[1761631381989,0.0733,113750.0,113740.0,0.05934]
[1761631382184,0.22654536,113750.0,113740.0,0.05934]
[1761631396490,0.0733,113750.0,113740.0,0.05934]
[1761631396696,0.03148,113750.0,113740.0,0.21258536]
[1761631396909,0.009,113750.0,113740.0,0.05934]
[1761631397198,0.05172,113750.0,113740.0,0.05934]
[1761631397798,0.009,113750.0,113740.0,0.1472654]
[1761631398200,0.03038,113750.0,113740.0,0.1472654]
[1761631400907,0.05172,113750.0,113740.0,0.05934]
[1761631401810,0.05172,113750.0,113740.0,0.65934]
[1761631403921,0.20496536,113750.0,113740.0,0.7472659]
[1761631404124,0.05172,113750.0,113740.0,0.7472659]
[1761631410927,0.03038,113750.0,113740.0,0.7472659]
[1761631411321,0.009,113750.0,113740.0,0.7472659]
[1761631411721,0.009,113750.0,113740.0,0.90051126]
[1761631412220,0.19896536,113770.0,113740.0,0.98843716]
[1761631412422,0.3590031,113770.0,113760.0,0.05755]
[1761631413430,0.3710031,113770.0,113760.0,0.05755]
[1761631413731,0.52509271,113770.0,113760.0,0.05755]
[1761631414122,0.52509271,113770.0,113760.0,0.05955]
[1761631414322,0.52409271,113770.0,113760.0,0.05955]
[1761631414524,0.52509271,113770.0,113760.0,0.05955]
[1761631416118,0.67818232,113770.0,113760.0,0.05955]
[1761631416929,0.3720031,113770.0,113760.0,0.21263961]
[1761631417228,0.3720031,113770.0,113760.0,0.05955]
[1761631417229,0.30180961,113770.0,113760.0,0.05955]
[1761631424635,0.14872,113770.0,113760.0,0.05955]
[1761631424835,0.30180961,113770.0,113760.0,0.05955]
[1761631426131,0.14872,113770.0,113760.0,0.05955]
[1761631426338,0.30180961,113770.0,113760.0,0.05955]
[1761631429134,0.21180961,113770.0,113760.0,0.21263961]
[1761631429740,0.21180961,113770.0,113760.0,0.05955]
[1761631432941,0.05872,113770.0,113760.0,0.05955]
[1761631433434,0.21180961,113770.0,113760.0,0.05955]
[1761631436546,0.05872,113770.0,113760.0,0.05955]
[1761631436738,0.21180961,113770.0,113760.0,0.05955]
[1761631440251,0.05872,113770.0,113760.0,0.14746]
[1761631440755,0.21180961,113770.0,113760.0,0.14746]
[1761631440954,0.21180961,113770.0,113760.0,0.30054961]
[1761631441449,0.21180961,113770.0,113760.0,0.21263961]
[1761631442143,0.21180961,113770.0,113760.0,0.05955]
[1761631443666,0.41402922,113770.0,113760.0,0.002]
[1761631443954,0.37402922,113770.0,113760.0,0.002]
[1761631444151,0.91402922,113770.0,113760.0,0.002]
[1761631444346,0.9372974,113770.0,113760.0,0.002]
[1761631452451,0.9372974,113770.0,113760.0,0.04608]
[1761631454650,0.9372974,113770.0,113760.0,0.002]
[1761631467563,0.96090941,113770.0,113760.0,0.002]
[1761631468268,0.96092215,113770.0,113760.0,0.002]
[1761631470262,1.11401176,113770.0,113760.0,0.002]
[1761631471164,1.14546155,113770.0,113760.0,0.002]
[1761631475264,1.14546155,113770.0,113730.0,0.05674]
[1761631475265,0.00913,113760.0,113730.0,0.05674]
[1761631475468,0.50306883,113740.0,113730.0,0.04298]
[1761631475664,0.1969945,113740.0,113730.0,0.04298]
[1761631476265,0.20569665,113740.0,113730.0,0.04298]
[1761631477065,0.20569665,113740.0,113720.0,0.05562]
[1761631477275,0.350189,113730.0,113720.0,0.05562]
[1761631477462,0.1969945,113730.0,113720.0,0.05562]
[1761631479271,0.1969945,113730.0,113720.0,0.05762]
[1761631486764,0.0438,113730.0,113720.0,0.05762]
[1761631486971,0.1969945,113730.0,113720.0,0.05762]
[1761631498492,0.350189,113730.0,113720.0,0.04498]
[1761631499082,0.1969945,113730.0,113720.0,0.04498]
[1761631499990,0.1969945,113730.0,113720.0,0.05869]
[1761631505688,0.0438,113730.0,113720.0,0.05869]
[1761631505994,0.0438,113730.0,113720.0,0.2118845]
[1761631506190,0.0438,113730.0,113720.0,0.05869]
[1761631506894,0.0438,113730.0,113720.0,0.1466307]
[1761631509183,0.0463,113740.0,113720.0,0.2998252]
[1761631509393,0.06957087,113740.0,113730.0,0.05746]
[1761631509587,0.0463,113740.0,113730.0,0.145393]
[1761631509890,0.0463,113740.0,113730.0,0.05746]
[1761631510496,0.0463,113740.0,113730.0,0.145393]
[1761631511903,0.0473,113740.0,113730.0,0.145393]
[1761631512189,0.02424,113740.0,113730.0,0.2985875]
[1761631512393,0.001,113740.0,113730.0,0.2985875]
[1761631512600,0.1994945,113760.0,113750.0,0.05746]
[1761631512791,0.25280596,113760.0,113750.0,0.05746]
[1761631513497,0.09961146,113760.0,113750.0,0.05746]
[1761631513688,0.0773,113760.0,113750.0,0.05746]
[1761631513892,0.0473,113760.0,113750.0,0.05746]
[1761631514291,0.02424,113760.0,113750.0,0.2985721]
[1761631514494,0.001,113760.0,113750.0,0.2985721]
[1761631514996,0.1531945,113780.0,113750.0,0.30719357]
[1761631515198,0.7194945,113780.0,113770.0,0.05746]
[1761631515398,0.7286245,113780.0,113760.0,0.05746]
[1761631515599,0.1994945,113770.0,113760.0,0.05746]
[1761631515791,0.0463,113770.0,113760.0,0.05746]
[1761631515992,0.1994945,113770.0,113760.0,0.05746]
[1761631517501,0.0493,113770.0,113760.0,0.05846]
[1761631517700,0.2034945,113770.0,113760.0,0.05846]
[1761631522004,0.7526245,113770.0,113760.0,0.02299]
[1761631522604,0.7526245,113770.0,113760.0,0.04583]
[1761631522902,0.7526245,113770.0,113760.0,0.001]
[1761631523605,0.7526245,113770.0,113760.0,0.02299]
[1761631523794,0.905819,113770.0,113760.0,0.001]
[1761631524398,0.0463,113740.0,113730.0,0.05746]
[1761631524599,0.1994945,113740.0,113730.0,0.05746]
[1761631526006,0.2004945,113740.0,113730.0,0.06246]
[1761631528496,0.2004945,113740.0,113730.0,0.04983]
[1761631529109,0.2004945,113740.0,113730.0,0.06345]
[1761631530616,0.2004945,113740.0,113730.0,0.04983]
[1761631533221,0.2004945,113740.0,113730.0,0.02699]
[1761631533721,0.2004945,113740.0,113730.0,0.04919]
[1761631535407,0.2004945,113740.0,113730.0,0.06281]
[1761631535911,0.0473,113740.0,113730.0,0.06281]
[1761631537719,0.20043853,113740.0,113730.0,0.21594853]
[1761631540210,0.20043853,113740.0,113730.0,0.06281]
[1761631541118,0.02424,113740.0,113730.0,0.30388173]
[1761631541320,0.15413853,113740.0,113730.0,0.30388173]
[1761631541619,0.17542853,113740.0,113730.0,0.30388173]
[1761631541819,0.001,113740.0,113730.0,0.30388173]
[1761631542618,0.02229,113740.0,113730.0,0.30388173]
[1761631542922,0.001,113740.0,113730.0,0.30388173]
[1761631547023,0.001,113740.0,113730.0,0.1507432]
[1761631547222,0.001,113740.0,113730.0,0.30388173]
[1761631548821,0.001,113740.0,113730.0,0.1507432]
[1761631549021,0.001,113740.0,113730.0,0.30388173]
[1761631556526,0.001,113740.0,113730.0,0.45702026]
[1761631556733,0.07543311,113770.0,113760.0,0.05694]
[1761631556923,0.53823322,113770.0,113760.0,0.05694]
[1761631557227,0.53823322,113770.0,113760.0,0.21007853]
[1761631557228,0.27938424,113770.0,113760.0,0.21007853]
[1761631557624,0.19607853,113770.0,113760.0,0.21007853]
[1761631558026,0.22038561,113770.0,113760.0,0.21007853]
[1761631558232,0.19807853,113770.0,113760.0,0.21007853]
[1761631558735,0.19807853,113770.0,113760.0,0.2114405]
[1761631559730,0.19807853,113770.0,113760.0,0.22038868]
[1761631560931,0.19807853,113770.0,113760.0,0.30829858]
[1761631561140,0.002,113770.0,113760.0,0.46143711]
[1761631561624,0.04467,113790.0,113780.0,0.05797]
[1761631561826,0.22780853,113790.0,113780.0,0.21110853]
[1761631562932,0.19780853,113790.0,113780.0,0.21110853]
[1761631563133,0.04467,113790.0,113780.0,0.21110853]
[1761631563642,0.19780853,113790.0,113780.0,0.21110853]
[1761631563827,0.19880853,113790.0,113780.0,0.21110853]
[1761631564137,0.20280853,113790.0,113780.0,0.05897]
[1761631564531,0.20280853,113790.0,113780.0,0.21210853]
[1761631566438,0.04967,113790.0,113780.0,0.21210853]
[1761631566739,0.20280853,113790.0,113780.0,0.21210853]
[1761631570030,0.20280853,113790.0,113780.0,0.05897]
[1761631570427,0.20280853,113790.0,113780.0,0.21210853]
[1761631571141,0.20280853,113790.0,113780.0,0.05897]
[1761631571342,0.20280853,113790.0,113780.0,0.21210853]
[1761631571942,0.20280853,113790.0,113780.0,0.30000303]
[1761631572129,0.19880853,113790.0,113780.0,0.21110853]
[1761631572329,0.19880853,113790.0,113780.0,0.21210853]
[1761631572529,0.19880853,113790.0,113780.0,0.05897]
[1761631572743,0.19880853,113790.0,113780.0,0.21210853]
[1761631573341,0.19880853,113790.0,113780.0,0.05897]
[1761631576844,0.04567,113790.0,113780.0,0.05897]
[1761631577040,0.19880853,113790.0,113780.0,0.05897]
[1761631579048,0.36107706,113790.0,113780.0,0.001]
[1761631579353,0.91107706,113790.0,113780.0,0.001]
[1761631580345,0.36107706,113790.0,113780.0,0.02375]
[1761631580545,0.76107706,113790.0,113780.0,0.02375]
[1761631582845,0.76107706,113790.0,113780.0,0.001]
[1761631583244,0.92107706,113790.0,113780.0,0.001]
[1761631584347,1.52107706,113790.0,113780.0,0.001]
[1761631586260,0.05372,113770.0,113760.0,0.00136197]
[1761631586439,0.38314943,113770.0,113760.0,0.00136197]
[1761631586838,0.99314943,113770.0,113760.0,0.00136197]
[1761631587438,0.99414943,113770.0,113760.0,0.00636197]
[1761631591146,1.00276363,113770.0,113760.0,0.00636197]
[1761631592241,1.60276363,113770.0,113760.0,0.00636197]
[1761631592642,1.00276363,113770.0,113760.0,0.00636197]
[1761631596644,0.39276363,113770.0,113760.0,0.00636197]
[1761631596845,1.00276363,113770.0,113760.0,0.00636197]
[1761631597751,0.84961027,113770.0,113760.0,0.00636197]
[1761631600359,1.00273397,113770.0,113760.0,0.00636197]
[1761631600746,1.60273397,113770.0,113760.0,0.00636197]
[1761631601156,1.44961027,113770.0,113760.0,0.00636197]
[1761631601353,1.60273397,113770.0,113760.0,0.00636197]
[1761631605148,1.44961027,113770.0,113760.0,0.00636197]
[1761631611359,0.84961027,113770.0,113760.0,0.05242197]
[1761631611746,0.84961027,113770.0,113760.0,0.06640197]
[1761631611747,0.16874237,113770.0,113760.0,0.06640197]
[1761631611947,0.32186607,113770.0,113760.0,0.06640197]
[1761631612255,0.16874237,113770.0,113760.0,0.06640197]
[1761631612448,0.32186607,113770.0,113760.0,0.06640197]
[1761631614258,0.2987137,113770.0,113760.0,0.06640197]
[1761631614452,0.32188791,113770.0,113760.0,0.06640197]
[1761631614662,0.33061847,113770.0,113760.0,0.06640197]
[1761631615256,0.32188791,113770.0,113760.0,0.06640197]
[1761631615463,0.16876421,113770.0,113760.0,0.06640197]
[1761631615660,0.32188791,113770.0,113760.0,0.06640197]
[1761631616665,0.22188791,113770.0,113760.0,0.06640197]
[1761631618466,0.06876421,113770.0,113760.0,0.06640197]
[1761631618669,0.22188791,113770.0,113760.0,0.06640197]
[1761631621372,0.06876421,113770.0,113760.0,0.06640197]
[1761631621673,0.001,113770.0,113760.0,0.21952567]
[1761631621876,0.04624,113770.0,113760.0,0.21952567]
[1761631622170,0.04624,113770.0,113760.0,0.06640197]
[1761631623565,0.02298,113770.0,113760.0,0.06640197]
[1761631623772,0.04624,113770.0,113760.0,0.06640197]
[1761631625477,0.1993637,113770.0,113760.0,0.06640197]
[1761631626265,0.04624,113770.0,113760.0,0.06640197]
[1761631626471,0.1993637,113770.0,113760.0,0.06640197]
[1761631627775,0.04624,113770.0,113760.0,0.06640197]
[1761631629279,0.1993637,113770.0,113760.0,0.06640197]
[1761631631783,0.1993637,113770.0,113760.0,0.21952567]
[1761631631784,0.02298,113770.0,113760.0,0.21952567]
[1761631631985,0.02298,113770.0,113760.0,0.06640197]
[1761631632281,0.001,113770.0,113760.0,0.21952567]
[1761631632481,0.001,113770.0,113760.0,0.06640197]
[1761631633490,0.001,113770.0,113760.0,0.21952567]
[1761631635593,0.06923299,113800.0,113790.0,0.05938]
[1761631635780,0.80185235,113800.0,113790.0,0.05938]
[1761631635982,0.27872865,113800.0,113790.0,0.05938]
[1761631636191,0.43185235,113800.0,113790.0,0.05938]
[1761631637192,0.43585235,113800.0,113790.0,0.05938]
[1761631637392,0.71585235,113800.0,113790.0,0.05938]
[1761631637584,0.71585235,113800.0,113790.0,0.0456]
[1761631637779,0.71585235,113800.0,113780.0,0.0456]
[1761631637986,0.3518374,113790.0,113780.0,0.02323]
[1761631638187,0.3518374,113790.0,113780.0,0.05938]
[1761631638492,0.1987137,113790.0,113780.0,0.05938]
[1761631640982,0.1997137,113790.0,113780.0,0.05938]
[1761631642900,0.04659,113790.0,113780.0,0.05938]
[1761631656007,0.1997137,113790.0,113780.0,0.05938]
[1761631657701,0.19962543,113790.0,113780.0,0.05938]
[1761631661116,0.20875543,113790.0,113780.0,0.0456]
[1761631661707,0.19962543,113790.0,113780.0,0.05914]
[1761631665320,0.22280619,113790.0,113780.0,0.05914]
[1761631665820,0.19962543,113790.0,113780.0,0.05914]
[1761631667615,0.19962543,113790.0,113780.0,0.21217543]
[1761631668323,0.19962543,113790.0,113780.0,0.05914]
[1761631668621,0.19962543,113790.0,113780.0,0.21217543]
[1761631672429,0.19962543,113790.0,113780.0,0.05914]
[1761631672619,0.19962543,113790.0,113780.0,0.21217543]
[1761631673822,0.04659,113790.0,113780.0,0.05914]
[1761631674025,0.19962543,113790.0,113780.0,0.05914]
[1761631675028,0.19962543,113790.0,113780.0,0.21217543]
[1761631677230,0.04659,113790.0,113780.0,0.21217543]
[1761631677420,0.19962543,113790.0,113780.0,0.21217543]
[1761631680935,0.04659,113790.0,113780.0,0.21217543]
[1761631681232,0.19962543,113790.0,113780.0,0.21217543]
[1761631683733,0.001,113790.0,113780.0,0.45310436]
[1761631684835,0.02212,113790.0,113780.0,0.45310446]
[1761631685038,0.04367,113790.0,113780.0,0.21217543]
[1761631685436,0.19670543,113790.0,113780.0,0.21217543]
[1761631688742,0.04367,113790.0,113780.0,0.21217543]
[1761631688936,0.19670543,113790.0,113780.0,0.21217543]
[1761631695550,0.04367,113790.0,113780.0,0.21217543]
[1761631695849,0.19670543,113790.0,113780.0,0.21217543]
[1761631696047,0.19670543,113790.0,113780.0,0.30006923]
[1761631696348,0.04367,113790.0,113780.0,0.30006923]
[1761631697551,0.04367,113790.0,113780.0,0.21217543]
[1761631698439,0.04367,113790.0,113780.0,0.39006993]
[1761631699344,0.19670543,113790.0,113780.0,0.39006993]
[1761631700656,0.04367,113790.0,113780.0,0.39006993]
[1761631703160,0.001,113790.0,113780.0,0.39006993]
[1761631703359,0.001,113790.0,113780.0,0.54310536]
[1761631705658,0.02257,113790.0,113780.0,0.54310536]
[1761631705852,0.19823543,113790.0,113780.0,0.14914]
[1761631706053,0.19823543,113790.0,113780.0,0.30217543]
[1761631706763,0.19823543,113790.0,113780.0,0.14914]
[1761631706957,0.23823543,113790.0,113780.0,0.14914]
[1761631708663,0.26140021,113790.0,113780.0,0.14914]
[1761631709561,0.23823543,113790.0,113780.0,0.14914]
[1761631712064,0.0852,113790.0,113780.0,0.14914]
[1761631712266,0.19823543,113790.0,113780.0,0.14914]
[1761631713167,0.19823543,113790.0,113780.0,0.30217543]
[1761631719665,0.0452,113790.0,113780.0,0.14914]
[1761631726677,0.02257,113790.0,113780.0,0.14914]
[1761631726878,0.001,113790.0,113780.0,0.14914]
[1761631727078,0.02393,113790.0,113780.0,0.14914]
[1761631727279,0.04621,113790.0,113780.0,0.14914]
[1761631729075,0.04621,113790.0,113780.0,0.30215392]
[1761631729371,0.04621,113790.0,113780.0,0.14914]
[1761631730177,0.001,113790.0,113780.0,0.39004862]
[1761631731676,0.06886393,113810.0,113790.0,0.0878812]
[1761631731877,0.24315831,113810.0,113800.0,0.21095392]
[1761631732085,0.02315831,113810.0,113800.0,0.21095392]
[1761631732872,0.02415831,113810.0,113800.0,0.21095392]
[1761631733282,0.04621,113810.0,113800.0,0.21095392]
[1761631733478,0.06935608,113810.0,113800.0,0.05794]
[1761631733890,0.07435608,113810.0,113800.0,0.06679708]
[1761631734190,0.05121,113810.0,113800.0,0.06679708]
[1761631734483,0.05121,113810.0,113800.0,0.06779708]
[1761631734675,0.05021,113810.0,113800.0,0.06779708]
[1761631734875,0.05121,113810.0,113800.0,0.06779708]
[1761631735979,0.05121,113810.0,113800.0,0.05894]
[1761631736383,0.20422392,113810.0,113800.0,0.05894]
[1761631736970,0.05121,113810.0,113800.0,0.05894]
[1761631739286,0.20422392,113810.0,113800.0,0.05894]
[1761631740081,0.05121,113810.0,113800.0,0.05894]
[1761631740281,0.20422392,113810.0,113800.0,0.05894]
[1761631740983,0.05121,113810.0,113800.0,0.05894]
[1761631741888,0.02893,113810.0,113800.0,0.05894]
[1761631742190,0.006,113810.0,113800.0,0.05894]
[1761631742391,0.02779,113810.0,113800.0,0.05894]
[1761631742587,0.05097,113810.0,113800.0,0.05894]
[1761631742891,0.02779,113810.0,113800.0,0.05894]
[1761631745994,0.05097,113810.0,113800.0,0.05894]
[1761631746690,0.006,113810.0,113800.0,0.21195392]
[1761631747895,0.26161982,113840.0,113830.0,0.05708]
[1761631748192,0.83096905,113840.0,113830.0,0.05708]
[1761631750094,0.83296905,113840.0,113830.0,0.05708]
[1761631750388,0.84296905,113840.0,113830.0,0.05808]
[1761631750782,0.84296905,113840.0,113830.0,0.05708]
[1761631750783,0.83596905,113840.0,113830.0,0.05708]
[1761631750989,0.83796905,113840.0,113830.0,0.05708]
[1761631751891,1.44662193,113840.0,113830.0,0.05708]